bitfinex-derivatives/quotes_BNBF0:USTF0_20250509
["timestamp","ask_amount","ask_price","bid_price","bid_amount"]
[1746780842540,0.26124193,635.69,634.23,0.302]
[1746780843640,0.26124193,635.68,634.23,0.302]
[1746780843940,0.26124193,635.68,634.24,0.3152467]
[1746780844137,0.26124193,635.68,634.25,0.3152467]
[1746780844335,0.53534293,635.67,634.26,0.3152467]
[1746780844539,0.53534293,635.67,634.27,0.3152467]
[1746780844737,0.26124193,635.66,634.28,0.3152467]
[1746780844940,0.26124193,635.66,634.23,0.302]
[1746780846337,0.27413447,635.65,634.23,0.302]
[1746780846641,0.26124193,635.64,634.23,0.302]
[1746780849343,0.27411935,635.63,634.23,0.302]
[1746780849642,0.26124193,635.62,634.23,0.302]
[1746780851549,0.26124193,635.61,634.23,0.302]
[1746780851847,0.27411935,635.63,634.23,0.302]
[1746780852142,0.26130619,635.62,634.23,0.302]
[1746780852546,0.26130619,635.61,634.23,0.302]
[1746780852947,0.26130619,635.6,634.23,0.302]
[1746780853147,0.26130619,635.59,634.23,0.302]
[1746780853546,0.26130619,635.58,634.23,0.302]
[1746780853846,0.26130619,635.57,634.23,0.302]
[1746780854344,0.26130619,635.56,634.23,0.302]
[1746780854948,0.26130619,635.55,634.23,0.302]
[1746780855148,0.26130619,635.54,634.23,0.302]
[1746780855448,0.26130619,635.53,634.23,0.302]
[1746780855749,0.26130619,635.52,634.23,0.302]
[1746780856250,0.26130619,635.51,634.23,0.302]
[1746780856444,0.53547953,635.51,634.23,0.302]
[1746780857051,0.26130619,635.5,634.23,0.302]
[1746780857352,0.26130619,635.5,634.22,0.478]
[1746780858053,0.26130619,635.5,634.21,0.31535295]
[1746780858054,0.27417334,635.51,634.21,0.31535295]
[1746780858453,0.26131015,635.5,634.21,0.31535295]
[1746780859949,0.26131015,635.5,634.22,0.462]
[1746780861450,0.26131015,635.56,634.22,0.462]
[1746780862149,0.26131015,635.56,634.23,0.409]
[1746780862356,0.2741701,635.55,634.23,0.409]
[1746780862858,0.26131015,635.54,634.23,0.409]
[1746780863155,0.26131015,635.53,634.23,0.409]
[1746780863653,0.26131015,635.52,634.23,0.409]
[1746780863851,0.26131015,635.51,634.23,0.409]
[1746780864155,0.26131015,635.5,634.23,0.409]
[1746780864451,0.26131015,635.49,634.23,0.409]
[1746780864855,0.26131015,635.48,634.23,0.409]
[1746780865155,0.26131015,635.47,634.23,0.409]
[1746780865358,0.53548781,635.47,634.23,0.409]
[1746780865656,0.26131015,635.46,634.23,0.409]
[1746780866658,0.26131015,635.45,634.23,0.409]
[1746780866958,0.26131015,635.44,634.23,0.409]
[1746780867358,0.53553967,635.43,634.23,0.409]
[1746780868059,0.26131015,635.42,634.23,0.409]
[1746780868459,0.26131015,635.41,634.23,0.409]
[1746780868760,0.26131015,635.4,634.23,0.409]
[1746780869059,0.26131015,635.39,634.23,0.409]
[1746780869362,0.26131015,635.42,634.23,0.409]
[1746780869763,0.26131015,635.41,634.23,0.409]
[1746780870161,0.26131015,635.42,634.23,0.409]
[1746780870564,0.26131015,635.41,634.24,0.31533804]
[1746780870764,0.26131015,635.42,634.24,0.31533804]
[1746780871363,0.26131015,635.41,634.24,0.31533804]
[1746780871665,0.26131015,635.42,634.24,0.31533804]
[1746780871964,0.26131015,635.41,634.24,0.31533804]
[1746780872266,0.26131015,635.4,634.24,0.31533804]
[1746780872561,0.26131015,635.39,634.24,0.31533804]
[1746780872968,0.26131015,635.38,634.24,0.31533804]
[1746780873368,0.5355883,635.37,634.24,0.31533804]
[1746780873567,0.26131015,635.36,634.24,0.31533804]
[1746780873963,0.26131015,635.35,634.24,0.31533804]
[1746780874470,0.26131015,635.34,634.24,0.31533804]
[1746780874768,0.26131015,635.33,634.24,0.31533804]
[1746780875067,0.31478712,635.35,634.24,0.31533804]
[1746780875467,0.261529,635.34,634.24,0.31533804]
[1746780875965,0.261529,635.33,634.24,0.31533804]
[1746780876270,0.261529,635.32,634.24,0.31533804]
[1746780876668,0.261529,635.31,634.24,0.31533804]
[1746780876968,0.261529,635.3,634.24,0.31533804]
[1746780877269,0.31478712,635.35,634.24,0.31533804]
[1746780877669,0.26148577,635.34,634.24,0.31533804]
[1746780879371,0.27429112,635.33,634.24,0.31533804]
[1746780879766,0.26148577,635.32,634.24,0.31533804]
[1746780882272,0.26148577,635.34,634.24,0.31533804]
[1746780882473,0.27427815,635.31,634.24,0.31533804]
[1746780883874,0.26148577,635.3,634.24,0.31533804]
[1746780884174,0.502,635.29,634.24,0.31533804]
[1746780884379,0.76348577,635.29,634.24,0.31533804]
[1746780884580,0.26148577,635.28,634.24,0.31533804]
[1746780884983,0.26148577,635.27,634.24,0.31533804]
[1746780885481,0.53577689,635.26,634.24,0.31533804]
[1746780885880,0.26148577,635.25,634.24,0.31533804]
[1746780886277,0.26148577,635.24,634.24,0.31533804]
[1746780886683,0.26148577,635.23,634.24,0.31533804]
[1746780887183,0.26148577,635.22,634.24,0.31533804]
[1746780887383,0.26148577,635.21,634.24,0.31533804]
[1746780887882,0.26148577,635.25,634.24,0.31533804]
[1746780888186,0.26148577,635.24,634.24,0.31533804]
[1746780888481,0.26148577,635.23,634.24,0.31533804]
[1746780888883,0.26148577,635.22,634.24,0.31533804]
[1746780889379,0.27429112,635.21,634.24,0.31533804]
[1746780889782,0.26148577,635.2,634.24,0.31533804]
[1746780891678,0.26148577,635.28,634.24,0.31533804]
[1746780891879,0.26148577,635.27,634.24,0.31533804]
[1746780892181,0.26148577,635.26,634.24,0.31533804]
[1746780892389,0.26148577,635.25,634.24,0.31533804]
[1746780894381,0.26148577,635.28,634.24,0.31533804]
[1746780895386,0.2743149,635.27,634.24,0.31533804]
[1746780895885,0.26148577,635.26,634.24,0.31533804]
[1746780899487,0.26148577,635.25,634.24,0.31533804]
[1746780899681,0.26148577,635.24,634.22,0.462]
[1746780899982,0.26148577,635.23,634.22,0.902]
[1746780900182,0.26148577,635.22,634.22,0.902]
[1746780900387,0.26148577,635.21,634.22,0.902]
[1746780900685,0.26148577,635.2,634.22,0.902]
[1746780900887,0.26148577,635.19,634.22,0.902]
[1746780901087,0.26148577,635.18,634.22,0.902]
[1746780901288,0.26148577,635.17,634.22,0.902]
[1746780901585,0.26148577,635.16,634.22,0.902]
[1746780901783,0.26148577,635.15,634.22,0.902]
[1746780901987,0.26148577,635.14,634.22,0.902]
[1746780902187,0.26148577,635.13,634.22,0.902]
[1746780902485,0.26148577,635.12,634.22,0.902]
[1746780902689,2.06969776,634.82,634.22,0.902]
[1746780902891,0.26148577,634.81,634.22,0.902]
[1746780903086,0.26148577,634.8,634.22,0.44]
[1746780903393,0.26148577,634.79,634.22,0.44]
[1746780903589,0.26148577,634.78,634.22,0.44]
[1746780903791,0.26148577,634.77,634.22,0.44]
[1746780904089,0.26148577,634.76,634.22,0.44]
[1746780904289,0.26148577,634.75,634.22,0.44]
[1746780904490,0.26148577,634.74,634.21,0.08760046]
[1746780904691,0.26148577,634.73,634.21,0.08760046]
[1746780905190,2.06969776,634.67,634.21,0.08760046]
[1746780905384,0.26148577,634.66,634.21,0.08760046]
[1746780905789,0.26148577,634.65,634.21,0.08760046]
[1746780906285,2.06969776,634.67,634.21,0.08760046]
[1746780906483,0.53622964,634.64,634.21,0.08760046]
[1746780906688,0.2745064,634.64,634.21,0.08760046]
[1746780906885,0.26172324,634.63,634.21,0.08760046]
[1746780907491,2.06969776,634.52,634.21,0.08760046]
[1746780907690,0.26172324,634.51,634.21,0.08760046]
[1746780907989,2.06969776,634.52,634.21,0.08760046]
[1746780908193,0.26172716,634.51,634.21,0.08760046]
[1746780909692,0.26172716,634.63,634.21,0.08760046]
[1746780909993,0.26172716,634.62,634.21,0.08760046]
[1746780910191,0.26172716,634.61,634.21,0.08760046]
[1746780910392,0.26172716,634.6,634.21,0.08760046]
[1746780910592,0.26172716,634.63,634.21,0.08760046]
[1746780910893,0.26172716,634.62,634.21,0.08760046]
[1746780911291,0.26172716,634.61,634.21,0.08760046]
[1746780911486,0.2745064,634.64,634.21,0.08760046]
[1746780911693,0.26172218,634.63,634.21,0.08760046]
[1746780912492,2.06969776,634.87,634.21,0.08760046]
[1746780912493,0.27448042,634.62,634.21,0.08760046]
[1746780912691,0.26172218,634.61,634.21,0.08760046]
[1746780918499,0.2744025,634.6,634.21,0.08760046]
[1746780918896,0.26172218,634.59,634.21,0.08760046]
[1746780919900,0.26164064,634.58,634.21,0.08760046]
[1746780920099,0.2744025,634.6,634.21,0.08760046]
[1746780920298,0.26164052,634.59,634.21,0.08760046]
[1746780921697,0.26164052,634.91,634.21,0.08760046]
[1746780921900,0.26164052,634.58,634.21,0.08760046]
[1746780922100,0.26164052,634.9,634.21,0.08760046]
[1746780922301,0.26164052,634.89,634.21,0.08760046]
[1746780922499,0.27443821,634.57,634.21,0.08760046]
[1746780924104,0.26164052,634.54,634.21,0.08760046]
[1746780924501,0.26164052,635.01,634.21,0.08760046]
[1746780924705,0.57660114,635.0,634.21,0.08760046]
[1746780924904,0.26164052,634.99,634.21,0.08760046]
[1746780925301,0.31496062,635.0,634.21,0.08760046]
[1746780925504,0.53617228,634.98,634.21,0.08760046]
[1746780925704,0.26170593,634.97,634.21,0.08760046]
[1746780925907,0.26170593,634.96,634.21,0.08760046]
[1746780926102,0.26170593,634.95,634.21,0.08760046]
[1746780926308,0.26170593,634.94,634.21,0.08760046]
[1746780926609,0.26170593,634.93,634.21,0.08760046]
[1746780926907,0.26170593,634.92,634.21,0.08760046]
[1746780927104,0.26170593,634.91,634.21,0.08760046]
[1746780927309,0.26170593,634.9,634.21,0.08760046]
[1746780927609,0.26170593,634.89,634.21,0.08760046]
[1746780927803,0.26170593,634.88,634.21,0.08760046]
[1746780928006,0.26170593,634.87,634.21,0.08760046]
[1746780928210,0.26170593,634.86,634.21,0.08760046]
[1746780928403,0.26170593,634.85,634.21,0.08760046]
[1746780928605,0.26170593,634.84,634.21,0.08760046]
[1746780928805,0.26170593,634.83,634.21,0.08760046]
[1746780929105,0.26170593,634.82,634.21,0.08760046]
[1746780929312,0.26170593,634.81,634.21,0.08760046]
[1746780929510,0.26170593,634.8,634.21,0.08760046]
[1746780929811,0.26170593,634.79,634.21,0.08760046]
[1746780930109,0.26170593,634.78,634.21,0.08760046]
[1746780930610,0.26170593,634.77,634.21,0.08760046]
[1746780930810,0.26170593,634.76,634.21,0.08760046]
[1746780931105,0.26170593,634.75,634.21,0.08760046]
[1746780931311,0.26170593,634.74,634.21,0.0124229]
[1746780931510,0.26170593,634.73,634.21,0.0124229]
[1746780931709,0.26170593,634.72,634.1,0.31540766]
[1746780932014,0.26170593,634.71,634.1,0.31540766]
[1746780932315,0.26170593,634.7,634.1,0.31540766]
[1746780932612,0.26170593,634.69,634.1,0.31540766]
[1746780932918,0.26170593,634.68,634.1,0.31540766]
[1746780933616,0.26170593,634.67,634.1,0.31540766]
[1746780934118,0.26170593,634.66,634.1,0.31540766]
[1746780934317,0.26170593,634.65,634.1,0.31540766]
[1746780934612,0.26170593,634.64,634.1,0.31540766]
[1746780935115,0.26170593,634.63,634.1,0.31540766]
[1746780935515,0.26170593,634.62,634.1,0.31540766]
[1746780936014,0.26170593,634.61,634.1,0.31540766]
[1746780936219,0.26170593,634.6,634.1,0.31540766]
[1746780936516,0.53613007,634.6,634.1,0.31540766]
[1746780936718,0.26170593,634.59,634.1,0.31540766]
[1746780937216,0.26170593,634.58,634.1,0.31540766]
[1746780937620,0.26170593,634.57,634.1,0.31540766]
[1746780937921,0.26170593,634.56,634.1,0.31540766]
[1746780938223,0.26170593,634.55,634.1,0.31540766]
[1746780938623,0.26170593,634.54,634.1,0.31540766]
[1746780939024,0.26170593,634.53,634.1,0.31540766]
[1746780939523,0.5361463,634.52,634.1,0.31540766]
[1746780939725,0.27444037,634.52,634.1,0.31540766]
[1746780940419,0.26169159,634.51,634.1,0.31540766]
[1746780940923,0.26169159,634.5,634.1,0.31540766]
[1746780941120,0.26169159,634.49,634.1,0.31540766]
[1746780941318,0.26169159,634.48,634.1,0.31540766]
[1746780941726,0.26169159,634.47,634.1,0.31540766]
[1746780942025,0.26169159,634.46,634.1,0.31540766]
[1746780942229,0.26169159,634.51,634.1,0.31540766]
[1746780942433,0.27443496,634.45,634.1,0.31540766]
[1746780943230,0.26169159,634.44,634.1,0.31540766]
[1746780945425,0.27443064,634.43,634.1,0.31540766]
[1746780945930,0.26169159,634.42,634.1,0.31540766]
[1746780951737,0.26169159,634.45,634.1,0.31540766]
[1746780953035,0.27438952,634.46,634.1,0.31540766]
[1746780953236,0.26158696,634.45,634.1,0.31540766]
[1746780954438,0.27438736,634.45,634.1,0.31540766]
[1746780954639,0.26158696,634.44,634.1,0.31540766]
[1746780960444,0.2744025,634.43,634.1,0.31540766]
[1746780960839,0.26158696,634.42,634.1,0.31540766]
[1746780962344,0.26158696,635.02,634.1,0.31540766]
[1746780962745,0.26158696,635.01,634.1,0.31540766]
[1746780962939,0.26158696,635.0,634.1,0.31540766]
[1746780963343,0.26158696,634.99,633.98,0.31546736]
[1746780963541,2.06969776,634.89,633.98,0.31546736]
[1746780964046,0.26158696,634.88,633.98,0.31546736]
[1746780964247,0.26158696,634.87,633.98,0.31546736]
[1746780964748,0.26158696,634.86,633.98,0.31546736]
[1746780965247,0.26158696,634.85,633.98,0.31546736]
[1746780965548,2.06969776,634.48,633.98,0.31546736]
[1746780965949,0.26158696,634.47,633.98,0.31546736]
[1746780966249,0.26158696,634.46,633.98,0.31546736]
[1746780966544,0.26158696,634.45,633.98,0.31546736]
[1746780966848,0.26158696,634.44,633.98,0.31546736]
[1746780967147,0.26158696,634.43,633.98,0.31546736]
[1746780967343,0.26158696,634.42,633.98,0.31546736]
[1746780967748,0.26158696,634.41,633.98,0.31546736]
[1746780968048,0.26158696,634.4,633.98,0.31546736]
[1746780968348,0.26158696,634.39,633.98,0.31546736]
[1746780968849,0.26158696,634.38,633.98,0.31546736]
[1746780969350,0.26158696,634.37,633.98,0.31546736]
[1746780969649,0.26158696,634.36,633.98,0.31546736]
[1746780969948,2.06969776,634.49,633.98,0.31546736]
[1746780969949,0.26158696,634.35,633.98,0.31546736]
[1746780970352,0.26158696,634.34,633.98,0.31546736]
[1746780970652,2.06969776,634.49,633.98,0.31546736]
[1746780970949,0.26175737,634.48,633.98,0.31546736]
[1746780971349,0.26175737,634.47,633.98,0.31546736]
[1746780971850,0.26175737,634.46,633.98,0.31546736]
[1746780972348,0.26175737,634.45,633.98,0.31546736]
[1746780972549,0.26175737,634.44,633.98,0.31546736]
[1746780973050,0.26175737,634.43,633.98,0.31546736]
[1746780973450,0.26175737,634.42,633.98,0.31546736]
[1746780973751,0.26175737,634.41,633.98,0.31546736]
[1746780974051,0.26175737,634.41,633.98,0.04843811]
[1746780974252,0.26175737,634.4,633.98,0.04843811]
[1746780975151,0.26175737,634.39,633.98,0.04843811]
[1746780975853,0.26175737,634.7,633.98,0.04843811]
[1746780976155,0.399,634.71,633.98,0.04843811]
[1746780976655,0.26180291,634.7,633.98,0.04843811]
[1746780977055,0.26180291,634.69,633.98,0.04843811]
[1746780977450,0.26180291,634.68,633.98,0.04843811]
[1746780977756,0.26180291,634.67,633.98,0.04843811]
[1746780978156,0.26180291,634.66,633.98,0.04843811]
[1746780978551,0.26180291,634.65,633.98,0.04843811]
[1746780978850,0.399,634.71,633.98,0.04843811]
[1746780979257,0.26180075,634.7,633.98,0.04843811]
[1746780979555,0.26180075,634.69,633.98,0.04843811]
[1746780979956,0.26180075,634.68,633.98,0.04843811]
[1746780980355,0.26180075,634.67,633.98,0.04843811]
[1746780980654,0.26180075,634.66,633.98,0.04843811]
[1746780981055,0.26180075,634.65,633.98,0.04843811]
[1746780981452,0.53634722,634.64,633.98,0.04843811]
[1746780981649,0.26180075,634.63,633.98,0.04843811]
[1746780982959,0.26180075,634.62,633.98,0.04843811]
[1746780983259,0.26180075,634.63,633.98,0.04843811]
[1746780983553,0.26180075,634.62,633.98,0.04843811]
[1746780983959,0.27454647,634.64,633.98,0.04843811]
[1746780984155,0.26187929,634.63,633.98,0.04843811]
[1746780984459,0.5363662,634.63,633.98,0.04843811]
[1746780984652,0.26187929,634.62,633.98,0.04843811]
[1746780985055,0.26187929,634.61,633.98,0.04843811]
[1746780985452,0.57703844,634.6,633.98,0.04843811]
[1746780985754,0.57704341,634.59,633.98,0.04843811]
[1746780985962,0.31516908,634.58,633.98,0.04843811]
[1746780986360,0.57704837,634.58,633.98,0.04843811]
[1746780986754,0.57704837,634.58,633.98,0.00759212]
[1746780986959,0.26187929,634.57,633.89,0.318]
[1746780987353,0.26187929,634.56,633.89,0.318]
[1746780987659,0.26187929,634.55,633.89,0.318]
[1746780988061,0.26187929,634.54,633.89,0.318]
[1746780988353,0.26187929,634.53,633.89,0.318]
[1746780988659,0.26187929,634.52,633.89,0.318]
[1746780988861,2.06969776,634.48,633.87,0.437]
[1746780989361,0.26187929,634.47,633.87,0.437]
[1746780989557,2.06969776,634.48,633.87,0.437]
[1746780990161,0.63316908,634.58,633.87,0.437]
[1746780990162,2.06969776,634.56,633.87,0.437]
[1746780990365,0.26192474,634.47,633.87,0.437]
[1746780990561,0.26192474,634.55,633.87,0.437]
[1746780990861,0.26192474,634.54,633.87,0.437]
[1746780991063,0.31519392,634.53,633.87,0.437]
[1746780991363,0.57711866,634.53,633.87,0.437]
[1746780991763,0.26192474,634.52,633.87,0.437]
[1746780992065,0.26192474,634.51,633.87,0.437]
[1746780992364,0.26192474,634.5,633.87,0.437]
[1746780992867,0.26192474,634.49,633.87,0.437]
[1746780993365,0.26192474,634.48,633.87,0.437]
[1746780993667,0.26192474,634.47,633.87,0.437]
[1746780993967,0.26192474,634.46,633.87,0.437]
[1746780994364,0.26192474,634.45,633.87,0.437]
[1746780994765,0.53666086,634.44,633.87,0.437]
[1746780995066,0.26192474,634.43,633.87,0.437]
[1746780995466,0.26192474,634.42,633.87,0.437]
[1746780995767,0.26192474,634.41,633.87,0.437]
[1746780996063,0.26192474,634.4,633.87,0.437]
[1746780996465,0.53665435,634.39,633.87,0.437]
[1746780996770,0.26192474,634.38,633.87,0.437]
[1746780997062,0.26192474,634.37,633.87,0.437]
[1746780997467,0.26192474,634.36,633.87,0.437]
[1746780997867,0.26192474,634.35,633.87,0.437]
[1746780998263,0.26192474,634.34,633.87,0.437]
[1746780998668,0.26192474,634.33,633.87,0.437]
[1746780998968,0.26192474,634.32,633.87,0.437]
[1746780999264,0.26192474,634.31,633.87,0.437]
[1746780999669,0.26192474,634.3,633.87,0.437]
[1746781000070,0.26192474,634.29,633.87,0.437]
[1746781000268,0.27472961,634.39,633.87,0.437]
[1746781000569,0.26201161,634.38,633.87,0.437]
[1746781000869,0.26201161,634.37,633.87,0.437]
[1746781001174,0.26201161,634.38,633.87,0.437]
[1746781002076,2.06969776,634.27,633.87,0.437]
[1746781002273,2.06969776,634.27,633.22,0.381]
[1746781002576,0.26201161,634.26,633.22,0.381]
[1746781003480,0.27505533,634.25,633.22,0.381]
[1746781003874,0.79001161,634.24,633.22,0.381]
[1746781004175,0.79001161,634.24,633.23,0.5]
[1746781004475,0.26201161,634.23,633.23,0.5]
[1746781005773,0.26201161,634.22,633.23,0.5]
[1746781005973,0.26201161,634.21,633.23,0.5]
[1746781006276,0.26201161,634.2,633.23,0.5]
[1746781006476,0.26201161,634.19,633.23,0.5]
[1746781006878,0.26201161,634.18,633.23,0.5]
[1746781007176,0.26201161,634.17,633.23,0.5]
[1746781007472,0.26201161,634.16,633.23,0.5]
[1746781007776,0.26201161,634.15,633.23,0.5]
[1746781008078,0.26201161,634.14,633.23,0.5]
[1746781008577,0.26201161,634.13,633.23,0.5]
[1746781008776,0.26201161,634.12,633.23,0.5]
[1746781009176,0.26201161,634.11,633.23,0.5]
[1746781009477,0.26201161,634.1,633.23,0.5]
[1746781009880,0.26201161,634.09,633.23,0.5]
[1746781010375,0.26201161,634.08,633.23,0.5]
[1746781010775,0.26201161,634.07,633.23,0.5]
[1746781010980,2.06969776,633.86,633.23,0.5]
[1746781011378,0.26201161,633.85,633.23,0.5]
[1746781012881,0.26201161,634.23,633.23,0.5]
[1746781013183,0.31534798,634.22,633.23,0.5]
[1746781013681,0.26201161,634.21,633.23,0.5]
[1746781013976,0.26201161,634.2,633.23,0.5]
[1746781014481,0.26201161,634.19,633.23,0.5]
[1746781014986,0.26201161,634.18,633.23,0.5]
[1746781015380,0.26201161,634.17,633.23,0.5]
[1746781015580,0.53685405,634.17,633.23,0.5]
[1746781015883,0.27484244,634.17,633.23,0.5]
[1746781016684,2.06969776,634.14,633.23,0.5]
[1746781017084,0.26195096,634.13,633.23,0.07436468]
[1746781017384,0.26195096,634.12,633.23,0.07436468]
[1746781017578,0.26195096,634.11,633.23,0.07436468]
[1746781017983,0.26195096,634.1,633.23,0.07436468]
[1746781018184,0.26195096,634.1,632.97,0.368]
[1746781018384,0.26195096,634.09,632.97,0.368]
[1746781018584,0.26195096,634.08,632.97,0.368]
[1746781018985,0.26195096,634.07,632.97,0.368]
[1746781019284,0.26195096,634.06,632.97,0.368]
[1746781019687,0.26195096,634.05,632.97,0.368]
[1746781019889,2.06969776,633.5,632.97,0.368]
[1746781020582,0.27524677,633.49,632.97,0.368]
[1746781020884,0.53722804,633.49,632.97,0.368]
[1746781021387,0.26198127,633.48,632.97,0.368]
[1746781022087,0.26198127,633.47,632.97,0.368]
[1746781022486,0.26198127,633.48,632.97,0.368]
[1746781023490,0.27506294,633.47,632.97,0.368]
[1746781023890,0.26198127,633.46,632.97,0.368]
[1746781026191,0.26198127,633.46,632.36,0.439]
[1746781026392,0.26198127,633.45,632.36,0.439]
[1746781026592,0.26198127,633.45,632.37,0.31627053]
[1746781026798,0.26198127,633.44,632.37,0.31627053]
[1746781027194,0.26198127,633.43,632.37,0.31627053]
[1746781027492,0.26198127,633.42,632.37,0.31627053]
[1746781027795,0.26198127,633.41,632.37,0.31627053]
[1746781028091,0.26198127,633.46,632.37,0.31627053]
[1746781028587,0.26198127,633.45,632.37,0.31627053]
[1746781028792,0.26198127,633.46,632.37,0.31627053]
[1746781029095,0.26198127,633.45,632.37,0.31627053]
[1746781029293,0.26198127,633.45,632.38,0.4]
[1746781029494,0.27504881,633.44,632.38,0.4]
[1746781029694,0.26193301,633.43,632.38,0.4]
[1746781030298,0.27504881,633.44,632.38,0.4]
[1746781030799,0.26195879,633.43,632.38,0.4]
[1746781032595,0.27499012,633.42,632.38,0.4]
[1746781032901,0.26195879,633.41,632.38,0.4]
[1746781035408,0.26195879,633.4,632.38,0.4]
[1746781035904,0.26195879,633.39,632.38,0.4]
[1746781036206,0.26195879,633.38,632.38,0.4]
[1746781036906,0.26195879,633.41,632.38,0.4]
[1746781037307,0.26195879,633.4,632.38,0.4]
[1746781037607,0.26195879,633.39,632.38,0.4]
[1746781038307,0.26195879,633.38,632.38,0.4]
[1746781038608,0.53704021,633.38,632.38,0.4]
[1746781038908,0.27508142,633.38,632.38,0.4]
[1746781039107,0.26195879,633.37,632.38,0.4]
[1746781041610,0.26195879,633.37,632.39,0.318]
[1746781044610,0.26195879,633.39,632.39,0.318]
[1746781045612,0.27499447,633.38,632.39,0.318]
[1746781046013,0.26195879,633.37,632.39,0.318]
[1746781047114,0.27499447,633.38,632.39,0.318]
[1746781047407,0.386,633.4,632.39,0.318]
[1746781047613,0.27498034,633.36,632.39,0.318]
[1746781047913,0.26191721,633.35,632.39,0.318]
[1746781050409,0.386,633.4,632.39,0.318]
[1746781050708,0.274976,633.34,632.39,0.318]
[1746781052115,0.274976,633.34,632.41,0.31625053]
[1746781053212,0.386,633.4,632.41,0.31625053]
[1746781053616,0.26170511,633.39,632.41,0.31625053]
[1746781053811,0.53658228,633.39,632.41,0.31625053]
[1746781054911,0.26170511,633.38,632.41,0.31625053]
[1746781055313,0.26170511,633.38,632.41,0.76925053]
[1746781059421,0.26170511,633.39,632.41,0.76925053]
[1746781060017,0.26170511,634.21,632.41,0.76925053]
[1746781060215,0.27488369,633.38,632.41,0.76925053]
[1746781060414,0.27488369,633.38,632.42,0.3161387]
[1746781060615,0.27488369,633.38,632.41,0.76925053]
[1746781060616,0.26170511,634.2,632.43,0.3161387]
[1746781060814,0.27486958,633.39,632.44,0.3161387]
[1746781061015,2.06969776,634.71,632.45,0.3161387]
[1746781061222,2.06969776,634.71,632.46,0.3161387]
[1746781061520,2.06969776,634.71,632.47,0.3161194]
[1746781061721,2.06969776,634.71,632.48,0.3161194]
[1746781061915,0.79481531,634.21,632.48,0.3161194]
[1746781062314,0.52,634.21,632.49,0.3161194]
[1746781062518,0.52,634.21,632.5,0.3161194]
[1746781062715,0.26183373,634.2,632.51,0.3161194]
[1746781062919,0.26183373,634.2,632.52,0.3161194]
[1746781063219,0.26183373,634.2,632.53,0.3161194]
[1746781063516,0.53667943,634.19,632.54,0.3161194]
[1746781063716,0.53667943,634.19,632.55,0.3161194]
[1746781063920,0.53667943,634.19,632.56,0.3161194]
[1746781064115,0.53667943,634.19,632.47,0.427]
[1746781064323,0.26183373,634.18,632.48,0.31609662]
[1746781064521,0.26183373,634.18,632.49,0.31609662]
[1746781064821,0.26183373,634.17,632.5,0.31609662]
[1746781065021,0.26183373,634.16,632.51,0.31609662]
[1746781065222,0.26183373,634.16,632.52,0.31609662]
[1746781065423,0.26183373,634.15,632.47,0.427]
[1746781065722,0.26183373,634.14,632.47,0.427]
[1746781065923,0.26183373,634.13,632.47,0.427]
[1746781066117,0.26183373,634.12,632.47,0.427]
[1746781066321,0.26183373,634.12,632.48,0.31606172]
[1746781066517,0.26183373,634.14,632.49,0.31606375]
[1746781066721,0.26183373,634.14,632.5,0.31606375]
[1746781066922,0.26183373,634.14,632.51,0.31606375]
[1746781067123,0.26183373,634.13,632.47,0.427]
[1746781067422,0.26183373,634.12,632.47,0.427]
[1746781067718,0.26183373,634.11,632.47,0.427]
[1746781067922,0.26183373,634.1,632.47,0.427]
[1746781068225,0.26183373,634.09,632.47,0.427]
[1746781068523,0.26183373,634.08,632.47,0.427]
[1746781068925,0.26183373,634.07,632.47,0.427]
[1746781069223,0.27491083,634.09,632.47,0.427]
[1746781069427,0.26175519,634.06,632.47,0.427]
[1746781069618,0.26175519,634.05,632.47,0.427]
[1746781069923,0.26175519,634.04,632.47,0.427]
[1746781070624,0.26175519,634.03,632.47,0.427]
[1746781070824,0.26175519,634.02,632.47,0.427]
[1746781071225,0.26175519,634.01,632.47,0.427]
[1746781071526,0.26175519,634.0,632.47,0.427]
[1746781071826,0.26175519,633.99,632.47,0.427]
[1746781072226,0.26175519,633.98,632.47,0.427]
[1746781072626,0.26175519,633.97,632.47,0.427]
[1746781073027,0.26175519,633.96,632.47,0.427]
[1746781073726,0.26175519,633.95,632.47,0.427]
[1746781074127,0.26175519,633.94,632.47,0.427]
[1746781074323,0.26175519,633.93,632.47,0.427]
[1746781074528,0.53666602,633.93,632.47,0.427]
[1746781074727,0.26175519,633.92,632.47,0.427]